fUST/lending_fUST_20250828
["ID","MTS","AMOUNT","RATE_DAILY","PERIOD"]
[381875216,1756384250076,-480.0,0.00019452,2]
[381875218,1756384250086,-480.0,0.00019452,2]
[381875220,1756384250094,-480.0,0.00019452,2]
[381875221,1756384250103,-480.0,0.00019452,2]
[381875223,1756384250113,-480.0,0.00019452,2]
[381875225,1756384250122,-480.0,0.00019452,2]
[381875227,1756384250131,-480.0,0.00019452,2]
[381875229,1756384250140,-480.0,0.00019452,2]
[381875231,1756384250150,-480.0,0.00019452,2]
[381875233,1756384250159,-481.8316121,0.00019452,2]
[381875235,1756384250169,-480.0,0.00019452,2]
[381875237,1756384250179,-552.79837292,0.00019452,2]
[381875239,1756384250188,-480.0,0.00019452,2]
[381875241,1756384250202,-480.0,0.00019452,2]
[381875243,1756384250211,-480.0,0.00019452,2]
[381875245,1756384250220,-480.0,0.00019452,2]
[381875247,1756384250230,-480.0,0.00019452,2]
[381875249,1756384250242,-480.0,0.00019452,2]
[381875251,1756384250252,-480.0,0.00019452,2]
[381875253,1756384250261,-480.0,0.00019452,2]
[381875255,1756384250271,-530.76,0.00019452,2]
[381875257,1756384250280,-260.29899211,0.00019452,2]
[381875259,1756384250289,-480.0,0.00019452,2]
[381875261,1756384250298,-480.0,0.00019452,2]
[381875263,1756384250307,-480.0,0.00019452,2]
[381875265,1756384250316,-480.0,0.00019452,2]
[381875267,1756384250326,-480.0,0.00019452,2]
[381875269,1756384250335,-1556.26,0.00019452,2]
[381875271,1756384250344,-480.0,0.00019452,2]
[381875273,1756384250353,-481.34,0.00019452,2]
[381875275,1756384250363,-480.0,0.00019452,2]
[381875277,1756384250372,-480.0,0.00019452,2]
[381875279,1756384250381,-480.0,0.00019452,2]
[381875281,1756384250390,-480.0,0.00019452,2]
[381875283,1756384250399,-480.0,0.00019452,2]
[381875284,1756384250409,-480.0,0.00019452,2]
[381875285,1756384250417,-480.0,0.00019452,2]
[381875286,1756384250428,-480.0,0.00019452,2]
[381875287,1756384250437,-822.52,0.00019452,2]
[381875288,1756384250447,-480.0,0.00019452,2]
[381875289,1756384250456,-480.0,0.00019452,2]
[381875290,1756384250467,-480.0,0.00019452,2]
[381875291,1756384250477,-480.0,0.00019452,2]
[381875292,1756384250487,-480.0,0.00019452,2]
[381875293,1756384250497,-828.34,0.00019452,2]
[381875294,1756384250507,-480.0,0.00019452,2]
[381875295,1756384250516,-480.0,0.00019452,2]
[381875296,1756384250526,-480.0,0.00019452,2]
[381875297,1756384250536,-480.0,0.00019452,2]
[381875298,1756384250545,-480.0,0.00019452,2]
[381875299,1756384250555,-480.0,0.00019452,2]
[381875301,1756384250566,-480.0,0.00019452,2]
[381875303,1756384250576,-480.0,0.00019452,2]
[381875305,1756384250586,-480.0,0.00019452,2]
[381875307,1756384250596,-702.29,0.00019452,2]
[381875309,1756384250606,-480.0,0.00019452,2]
[381875311,1756384250616,-480.0,0.00019452,2]
[381875313,1756384250625,-1107.21,0.00019452,2]
[381875315,1756384250635,-480.0,0.00019452,2]
[381875317,1756384250646,-480.0,0.00019452,2]
[381875319,1756384250656,-480.0,0.00019452,2]
[381875321,1756384250666,-480.0,0.00019452,2]
[381875323,1756384250676,-642.18,0.00019452,2]
[381875325,1756384250686,-480.0,0.00019452,2]
[381875327,1756384250695,-480.0,0.00019452,2]
[381875329,1756384250705,-480.0,0.00019452,2]
[381875331,1756384250715,-480.0,0.00019452,2]
[381875334,1756384250724,-480.0,0.00019452,2]
[381875336,1756384250734,-480.0,0.00019452,2]
[381875337,1756384250745,-480.0,0.00019452,2]
[381875340,1756384250755,-480.0,0.00019452,2]
[381875341,1756384250764,-480.0,0.00019452,2]
[381875344,1756384250774,-495.12,0.00019452,2]
[381875346,1756384250784,-480.0,0.00019452,2]
[381875347,1756384250793,-480.0,0.00019452,2]
[381875350,1756384250803,-480.0,0.00019452,2]
[381875352,1756384250812,-531.78,0.00019452,2]
[381875353,1756384250822,-480.0,0.00019452,2]
[381875356,1756384250832,-480.0,0.00019452,2]
[381875357,1756384250842,-480.0,0.00019452,2]
[381875360,1756384250853,-480.0,0.00019452,2]
[381875362,1756384250862,-504.23,0.00019452,2]
[381875364,1756384250872,-290.1613484,0.00019452,2]
[381875366,1756384250882,-480.0,0.00019452,2]
[381875367,1756384250892,-480.0,0.00019452,2]
[381875369,1756384250902,-480.0,0.00019452,2]
[381875371,1756384250911,-480.0,0.00019452,2]
[381875374,1756384250921,-480.0,0.00019452,2]
[381875376,1756384250931,-480.0,0.00019452,2]
[381875378,1756384250941,-480.0,0.00019452,2]
[381875379,1756384250950,-480.0,0.00019452,2]
[381875382,1756384250960,-488.08,0.00019452,2]
[381875384,1756384250970,-480.0,0.00019452,2]
[381875386,1756384250979,-1093.88,0.00019452,2]
[381875388,1756384250990,-480.0,0.00019452,2]
[381875390,1756384251000,-480.0,0.00019452,2]
[381875391,1756384251009,-641.25,0.00019452,2]
[381875394,1756384251020,-516.19,0.00019452,2]
[381875396,1756384251029,-480.0,0.00019452,2]
[381875398,1756384251039,-480.0,0.00019452,2]
[381875399,1756384251049,-480.0,0.00019452,2]
[381875401,1756384251059,-480.0,0.00019452,2]
[381875403,1756384251068,-648.51,0.00019452,2]
[381875405,1756384251078,-593.99,0.00019452,2]
[381875408,1756384251088,-480.0,0.00019452,2]
[381875409,1756384251097,-480.0,0.00019452,2]
[381875411,1756384251107,-480.0,0.00019452,2]
[381875413,1756384251117,-480.0,0.00019452,2]
[381875416,1756384251127,-480.0,0.00019452,2]
[381875417,1756384251137,-463.4248469,0.00019452,2]
[381875420,1756384251147,-480.0,0.00019452,2]
[381875422,1756384251157,-480.0,0.00019452,2]
[381875424,1756384251167,-807.96,0.00019452,2]
[381875426,1756384251177,-696.91,0.00019452,2]
[381875428,1756384251187,-480.0,0.00019452,2]
[381875430,1756384251200,-480.0,0.00019452,2]
[381875432,1756384251209,-480.0,0.00019452,2]
[381875434,1756384251218,-480.0,0.00019452,2]
[381875436,1756384251228,-480.0,0.00019452,2]
[381875438,1756384251240,-918.93,0.00019452,2]
[381875440,1756384251250,-480.0,0.00019452,2]
[381875442,1756384251259,-480.0,0.00019452,2]
[381875444,1756384251268,-421.87958675,0.00019452,2]
[381875446,1756384251278,-802.9,0.00019452,2]
[381875448,1756384251288,-480.0,0.00019452,2]
[381875450,1756384251297,-480.0,0.00019452,2]
[381875452,1756384251307,-480.0,0.00019452,2]
[381875454,1756384251316,-480.0,0.00019452,2]
[381875456,1756384251326,-481.08191376,0.00019452,2]
[381875458,1756384251335,-787.3,0.00019452,2]
[381875460,1756384251345,-480.0,0.00019452,2]
[381875462,1756384251355,-526.6,0.00019452,2]
[381875464,1756384251366,-480.97961742,0.00019452,2]
[381875466,1756384251376,-480.0,0.00019452,2]
[381875468,1756384251386,-480.0,0.00019452,2]
[381875470,1756384251396,-1409.26,0.00019452,2]
[381875472,1756384251406,-480.0,0.00019452,2]
[381875474,1756384251416,-480.0,0.00019452,2]
[381875476,1756384251426,-480.0,0.00019452,2]
[381875478,1756384251435,-480.0,0.00019452,2]
[381875480,1756384251445,-480.0,0.00019452,2]
[381875482,1756384251455,-480.0,0.00019452,2]
[381875484,1756384251465,-480.0,0.00019452,2]
[381875486,1756384251475,-481.93370763,0.00019452,2]
[381875488,1756384251485,-481.49765861,0.00019452,2]
[381875490,1756384251496,-480.0,0.00019452,2]
[381875492,1756384251505,-480.0,0.00019452,2]
[381875494,1756384251515,-480.0,0.00019452,2]
[381875496,1756384251526,-480.0,0.00019452,2]
[381875498,1756384251536,-480.0,0.00019452,2]
[381875500,1756384251546,-480.0,0.00019452,2]
[381875502,1756384251558,-480.0,0.00019452,2]
[381875504,1756384251568,-480.0,0.00019452,2]
[381875506,1756384251579,-480.0,0.00019452,2]
[381875508,1756384251589,-578.3,0.00019452,2]
[381875510,1756384251598,-932.32,0.00019452,2]
[381875512,1756384251609,-480.0,0.00019452,2]
[381875514,1756384251619,-370.15810011,0.00019452,2]
[381875516,1756384251628,-480.0,0.00019452,2]
[381875518,1756384251638,-480.0,0.00019452,2]
[381875520,1756384251648,-480.0,0.00019452,2]
[381875522,1756384251658,-480.0,0.00019452,2]
[381875524,1756384251668,-480.0,0.00019452,2]
[381875526,1756384251678,-480.0,0.00019452,2]
[381875528,1756384251688,-480.0,0.00019452,2]
[381875530,1756384251698,-480.0,0.00019452,2]
[381875532,1756384251708,-480.0,0.00019452,2]
[381875534,1756384251718,-480.0,0.00019452,2]
[381875536,1756384251727,-545.09,0.00019452,2]
[381875538,1756384251740,-488.05,0.00019452,2]
[381875540,1756384251750,-480.0,0.00019452,2]
[381875542,1756384251760,-480.0,0.00019452,2]
[381875544,1756384251770,-480.0,0.00019452,2]
[381875546,1756384251780,-480.0,0.00019452,2]
[381875548,1756384251790,-609.22,0.00019452,2]
[381875550,1756384251798,-480.0,0.00019452,2]
[381875552,1756384251808,-480.0,0.00019452,2]
[381875554,1756384251817,-480.0,0.00019452,2]
[381875556,1756384251827,-480.0,0.00019452,2]
[381875558,1756384251837,-480.0,0.00019452,2]
[381875560,1756384251847,-480.0,0.00019452,2]
[381875563,1756384251858,-480.0,0.00019452,2]
[381875564,1756384251867,-480.0,0.00019452,2]
[381875567,1756384251878,-480.0,0.00019452,2]
[381875569,1756384251887,-351.70164035,0.00019452,2]
[381875571,1756384251897,-504.18,0.00019452,2]
[381875573,1756384251907,-539.51,0.00019452,2]
[381875574,1756384251917,-640.54,0.00019452,2]
[381875576,1756384251927,-480.0,0.00019452,2]
[381875579,1756384251937,-480.0,0.00019452,2]
[381875580,1756384251947,-480.0,0.00019452,2]
[381875582,1756384251957,-480.0,0.00019452,2]
[381875585,1756384251967,-578.57,0.00019452,2]
[381875587,1756384251976,-511.11288344,0.00019452,2]
[381875589,1756384251988,-480.0,0.00019452,2]
[381875591,1756384251997,-480.0,0.00019452,2]
[381875593,1756384252007,-480.0,0.00019452,2]
[381875595,1756384252016,-480.0,0.00019452,2]
[381875597,1756384252026,-480.0,0.00019452,2]
[381875599,1756384252034,-480.0,0.00019452,2]
[381875601,1756384252044,-480.0,0.00019452,2]
[381875602,1756384252053,-480.0,0.00019452,2]
[381875605,1756384252064,-776.37,0.00019452,2]
[381875607,1756384252074,-480.0,0.00019452,2]
[381875609,1756384252083,-480.0,0.00019452,2]
[381875611,1756384252094,-480.0,0.00019452,2]
[381875613,1756384252104,-480.0,0.00019452,2]
[381875615,1756384252113,-480.0,0.00019452,2]
[381875617,1756384252124,-480.0,0.00019452,2]
[381875619,1756384252135,-919.41,0.00019452,2]
[381875621,1756384252145,-480.0,0.00019452,2]
[381875623,1756384252155,-480.0,0.00019452,2]
[381875625,1756384252165,-480.0,0.00019452,2]
[381875627,1756384252175,-480.0,0.00019452,2]
[381875629,1756384252185,-480.0,0.00019452,2]
[381875632,1756384252200,-480.0,0.00019452,2]
[381875634,1756384252211,-615.20310593,0.00019452,2]
[381875636,1756384252221,-480.51336113,0.00019452,2]
[381875638,1756384252231,-848.71,0.00019452,2]
[381875640,1756384252243,-579.54515618,0.00019452,2]
[381875642,1756384252253,-500.0,0.00019452,2]
[381875644,1756384252263,-480.0,0.00019452,2]
[381875646,1756384252274,-519.15,0.00019452,2]
[381875648,1756384252284,-480.0,0.00019452,2]
[381875650,1756384252294,-668.9,0.00019452,2]
[381875652,1756384252304,-678.84,0.00019452,2]
[381875654,1756384252315,-480.0,0.00019452,2]
[381875656,1756384252324,-480.0,0.00019452,2]
[381875658,1756384252335,-480.0,0.00019452,2]
[381875661,1756384252345,-480.0,0.00019452,2]
[381875663,1756384252354,-480.0,0.00019452,2]
[381875665,1756384252364,-1356.22,0.00019452,2]
[381875667,1756384252374,-480.0,0.00019452,2]
[381875669,1756384252383,-1001.69,0.00019452,2]
[381875671,1756384252393,-480.0,0.00019452,2]
[381875673,1756384252403,-1735.58,0.00019452,2]
[381875675,1756384252412,-488.68068788,0.00019452,2]
[381875677,1756384252422,-480.0,0.00019452,2]
[381875679,1756384252431,-1198.11,0.00019452,2]
[381875681,1756384252441,-480.0,0.00019452,2]
[381875683,1756384252451,-480.0,0.00019452,2]
[381875685,1756384252460,-480.0,0.00019452,2]
[381875687,1756384252470,-480.0,0.00019452,2]
[381875689,1756384252480,-771.67,0.00019452,2]
[381875691,1756384252491,-2194.34,0.00019452,2]
[381875693,1756384252501,-1111.13,0.00019452,2]
[381875695,1756384252511,-480.0,0.00019452,2]
[381875697,1756384252520,-480.0,0.00019452,2]
[381875699,1756384252529,-480.0,0.00019452,2]
[381875701,1756384252540,-480.0,0.00019452,2]
[381875703,1756384252550,-664.64,0.00019452,2]
[381875705,1756384252560,-480.0,0.00019452,2]
[381875707,1756384252570,-480.0,0.00019452,2]
[381875709,1756384252581,-480.0,0.00019452,2]
[381875711,1756384252591,-1289.8,0.00019452,2]
[381875713,1756384252601,-523.97,0.00019452,2]
[381875715,1756384252611,-480.0,0.00019452,2]
[381875717,1756384252621,-480.0,0.00019452,2]
[381875735,1756384252782,-480.0,0.00019452,2]
[381875737,1756384252793,-480.0,0.00019452,2]
[381875739,1756384252803,-1977.57,0.00019452,2]
[381875741,1756384252812,-1519.44,0.00019452,2]
[381875743,1756384252822,-480.0,0.00019452,2]
[381875745,1756384252832,-480.0,0.00019452,2]
[381875747,1756384252841,-1910.05,0.00019452,2]
[381875749,1756384252851,-480.0,0.00019452,2]
[381875751,1756384252861,-480.0,0.00019452,2]
[381875753,1756384252871,-480.0,0.00019452,2]
[381875755,1756384252882,-480.0,0.00019452,2]
[381875757,1756384252892,-480.0,0.00019452,2]
[381875759,1756384252903,-482.52808145,0.00019452,2]
[381875761,1756384252913,-480.0,0.00019452,2]
[381875763,1756384252923,-487.58,0.00019452,2]
[381875765,1756384252932,-480.0,0.00019452,2]
[381875767,1756384252942,-590.49,0.00019452,2]
[381875769,1756384252953,-480.0,0.00019452,2]
[381875770,1756384252963,-3678.97,0.00019452,2]
[381875771,1756384252972,-480.0,0.00019452,2]
[381875772,1756384252983,-480.0,0.00019452,2]
[381875773,1756384252993,-556.51,0.00019452,2]
[381875775,1756384253003,-480.0,0.00019452,2]
[381875777,1756384253012,-955.97,0.00019452,2]
[381875780,1756384253022,-480.0,0.00019452,2]
[381875782,1756384253032,-480.0,0.00019452,2]
[381875783,1756384253042,-484.26,0.00019452,2]
[381875785,1756384253052,-2547.54,0.00019452,2]
[381875787,1756384253062,-480.0,0.00019452,2]
[381875790,1756384253072,-480.0,0.00019452,2]
[381875791,1756384253082,-643.55,0.00019452,2]
[381875794,1756384253091,-480.0,0.00019452,2]
[381875796,1756384253101,-480.0,0.00019452,2]
[381875797,1756384253111,-480.0,0.00019452,2]
[381875800,1756384253121,-480.0,0.00019452,2]
[381875802,1756384253131,-567.35,0.00019452,2]
[381875803,1756384253141,-480.0,0.00019452,2]
[381875806,1756384253151,-796.41,0.00019452,2]
[381875808,1756384253161,-1775.23,0.00019452,2]
[381875810,1756384253171,-486.40926927,0.00019452,2]
[381875811,1756384253180,-480.0,0.00019452,2]
[381875813,1756384253189,-1077.38,0.00019452,2]
[381875816,1756384253204,-698.14,0.00019452,2]
[381875818,1756384253214,-480.0,0.00019452,2]
[381875820,1756384253227,-480.0,0.00019452,2]
[381875822,1756384253238,-858.64,0.00019452,2]
[381875824,1756384253249,-481.51841144,0.00019452,2]
[381875826,1756384253270,-480.0,0.00019452,2]
[381875828,1756384253281,-923.5,0.00019452,2]
[381875830,1756384253291,-480.0,0.00019452,2]
[381875832,1756384253301,-480.0,0.00019452,2]
[381875834,1756384253310,-480.0,0.00019452,2]
[381875836,1756384253320,-480.0,0.00019452,2]
[381875838,1756384253331,-480.0,0.00019452,2]
[381875840,1756384253341,-480.0,0.00019452,2]
[381875842,1756384253351,-782.4,0.00019452,2]
[381875844,1756384253362,-621.13,0.00019452,2]
[381875847,1756384253372,-480.0,0.00019452,2]
[381875849,1756384253382,-2317.87,0.00019452,2]
[381875851,1756384253392,-481.50039817,0.00019452,2]
[381875853,1756384253401,-480.0,0.00019452,2]
[381875855,1756384253411,-3154.04,0.00019452,2]
[381875857,1756384253421,-480.0,0.00019452,2]
[381875859,1756384253431,-585.55,0.00019452,2]
[381875861,1756384253441,-480.0,0.00019452,2]
[381875863,1756384253453,-2927.74,0.00019452,2]
[381875865,1756384253462,-480.0,0.00019452,2]
[381875867,1756384253472,-3903.77,0.00019452,2]
[381875869,1756384253482,-480.0,0.00019452,2]
[381875871,1756384253494,-618.24,0.00019452,2]
[381875873,1756384253504,-480.0,0.00019452,2]
[381875875,1756384253513,-480.0,0.00019452,2]
[381875877,1756384253523,-480.0,0.00019452,2]
[381875879,1756384253532,-480.0,0.00019452,2]
[381875881,1756384253542,-480.0,0.00019452,2]
[381875883,1756384253553,-480.0,0.00019452,2]
[381875885,1756384253563,-2981.08,0.00019452,2]
[381875887,1756384253575,-480.0,0.00019452,2]
[381875889,1756384253585,-605.41,0.00019452,2]
[381875891,1756384253595,-480.0,0.00019452,2]
[381875893,1756384253605,-1613.16,0.00019452,2]
[381875895,1756384253616,-494.92,0.00019452,2]
[381875898,1756384253627,-674.0,0.00019452,2]
[381875900,1756384253637,-480.0,0.00019452,2]
[381875902,1756384253648,-514.54225346,0.00019452,2]
[381875904,1756384253658,-480.0,0.00019452,2]
[381875906,1756384253668,-480.0,0.00019452,2]
[381875908,1756384253678,-480.0,0.00019452,2]
[381875910,1756384253688,-480.0,0.00019452,2]
[381875912,1756384253698,-710.3,0.00019452,2]
[381875914,1756384253707,-480.0,0.00019452,2]
[381875916,1756384253717,-5843.28,0.00019452,2]
[381875918,1756384253726,-1350.34,0.00019452,2]
[381875920,1756384253736,-611.74,0.00019452,2]
[381875922,1756384253747,-1234.59,0.00019452,2]
[381875924,1756384253758,-581.93,0.00019452,2]
[381875926,1756384253768,-480.0,0.00019452,2]
[381875928,1756384253778,-480.0,0.00019452,2]
[381875930,1756384253788,-828.21,0.00019452,2]
[381875932,1756384253798,-480.0,0.00019452,2]
[381875934,1756384253808,-480.0,0.00019452,2]
[381875936,1756384253817,-480.0,0.00019452,2]
[381875938,1756384253827,-1674.08,0.00019452,2]
[381875940,1756384253837,-220.30247087,0.00019452,2]
[381875942,1756384253847,-636.77,0.00019452,2]
[381875944,1756384253856,-480.0,0.00019452,2]
[381875946,1756384253866,-480.0,0.00019452,2]
[381875948,1756384253876,-1941.39,0.00019452,2]
[381875950,1756384253886,-480.0,0.00019452,2]
[381875952,1756384253896,-480.0,0.00019452,2]
[381875954,1756384253906,-480.0,0.00019452,2]
[381875956,1756384253915,-480.0,0.00019452,2]
[381875958,1756384253925,-480.62226163,0.00019452,2]
[381875960,1756384253935,-3699.9,0.00019452,2]
[381875962,1756384253945,-480.0,0.00019452,2]
[381875964,1756384253954,-480.0,0.00019452,2]
[381875966,1756384253964,-493.20062932,0.00019452,2]
[381875968,1756384253973,-480.0,0.00019452,2]
[381875970,1756384253982,-524.98750053,0.00019452,2]
[381875972,1756384253992,-480.0,0.00019452,2]
[381875974,1756384254001,-1220.04,0.00019452,2]
[381875976,1756384254010,-480.0,0.00019452,2]
[381875978,1756384254020,-898.06,0.00019452,2]
[381875980,1756384254030,-480.0,0.00019452,2]
[381875982,1756384254039,-480.0,0.00019452,2]
[381875984,1756384254049,-480.0,0.00019452,2]
[381875986,1756384254058,-480.0,0.00019452,2]
[381875988,1756384254068,-5054.96,0.00019452,2]
[381875990,1756384254077,-480.0,0.00019452,2]
[381875992,1756384254087,-480.0,0.00019452,2]
[381875994,1756384254096,-480.0,0.00019452,2]
[381875996,1756384254106,-2742.83,0.00019452,2]
[381875998,1756384254115,-480.0,0.00019452,2]
[381876000,1756384254128,-583.88,0.00019452,2]
[381876003,1756384254138,-480.0,0.00019452,2]
[381876005,1756384254147,-480.0,0.00019452,2]
[381876006,1756384254157,-692.54,0.00019452,2]
[381876008,1756384254166,-746.84,0.00019452,2]
[381876010,1756384254176,-480.0,0.00019452,2]
[381876012,1756384254185,-480.0,0.00019452,2]
[381876014,1756384254196,-480.0,0.00019452,2]
[381876016,1756384254207,-533.95,0.00019452,2]
[381876018,1756384254218,-480.0,0.00019452,2]
[381876020,1756384254228,-480.0,0.00019452,2]
[381876022,1756384254240,-480.0,0.00019452,2]
[381876024,1756384254250,-520.42,0.00019452,2]
[381876026,1756384254260,-480.0,0.00019452,2]
[381876028,1756384254269,-480.0,0.00019452,2]
[381876031,1756384254281,-480.0,0.00019452,2]
[381876033,1756384254291,-2834.09,0.00019452,2]
[381876035,1756384254301,-480.0,0.00019452,2]
[381876037,1756384254311,-1293.02,0.00019452,2]
[381876039,1756384254321,-480.0,0.00019452,2]
[381876041,1756384254330,-480.0,0.00019452,2]
[381876043,1756384254340,-3182.62,0.00019452,2]
[381876045,1756384254349,-480.0,0.00019452,2]
[381876047,1756384254359,-480.0,0.00019452,2]
[381876049,1756384254368,-543.79,0.00019452,2]
[381876051,1756384254378,-480.0,0.00019452,2]
[381876053,1756384254387,-265.34001834,0.00019452,2]
[381876055,1756384254397,-480.0,0.00019452,2]
[381876057,1756384254406,-480.0,0.00019452,2]
[381876059,1756384254415,-419.0,0.00019464,2]
[381876061,1756384254425,-502.07979579,0.00019473,2]
[381876063,1756384254434,-500.0,0.00019473,2]
[381876065,1756384254443,-500.0,0.00019473,2]
[381876067,1756384254452,-500.0,0.00019473,2]
[381876069,1756384254463,-500.0,0.00019473,2]
[381876071,1756384254472,-500.0,0.00019473,2]
[381876073,1756384254481,-500.0,0.00019473,2]
[381876075,1756384254492,-500.0,0.00019473,2]
[381876077,1756384254502,-301.09,0.000195,2]
[381876079,1756384254511,-151.0,0.000195,2]
[381876081,1756384254520,-151.0,0.000195,2]
[381876083,1756384254530,-168.0,0.00019505,2]
[381876085,1756384254540,-1987.6023309,0.00019507,2]
[381876087,1756384254550,-2500.0,0.00019515,2]
[381876089,1756384254560,-2500.0,0.00019515,2]
[381876091,1756384254570,-2500.0,0.00019515,2]
[381876093,1756384254580,-500.0,0.00019528,2]
[381876095,1756384254591,-154.65837251,0.00019531,2]
[381876097,1756384254601,-1492.0,0.00019531,2]
[381876099,1756384254611,-168.0,0.00019556,2]
[381876101,1756384254620,-300.0,0.00019561,20]
[381876103,1756384254630,-300.0,0.00019561,20]
[381876105,1756384254640,-300.0,0.00019561,20]
[381876107,1756384254649,-300.0,0.00019561,20]
[381876108,1756384254659,-300.0,0.00019561,20]
[381876111,1756384254668,-300.0,0.00019561,20]
[381876112,1756384254678,-300.0,0.00019561,20]
[381876115,1756384254688,-300.0,0.00019561,20]
[381876116,1756384254697,-300.0,0.00019561,20]
[381876118,1756384254706,-300.0,0.00019561,20]
[381876120,1756384254716,-300.0,0.00019561,20]
[381876122,1756384254726,-300.0,0.00019561,20]
[381876124,1756384254736,-300.0,0.00019561,20]
[381876126,1756384254746,-300.0,0.00019561,20]
[381876128,1756384254756,-300.0,0.00019561,20]
[381876130,1756384254765,-600.0,0.00019561,20]
[381876132,1756384254775,-168.0,0.00019589,2]
[381876134,1756384254784,-151.0,0.000196,2]
[381876136,1756384254794,-151.0,0.000196,2]
[381876138,1756384254803,-4583.29073917,0.00019626,2]
[381876140,1756384254813,-2000.0,0.00019644,2]
[381876143,1756384254823,-168.0,0.00019655,2]
[381876145,1756384254832,-419.0,0.00019684,2]
[381876147,1756384254841,-1000.0,0.00019721,2]
[381876149,1756384254851,-1000.0,0.00019721,2]
[381876151,1756384254860,-460.70241166,0.00019721,2]
[381876153,1756384254869,-1000.0,0.00019721,2]
[381876154,1756384254878,-1000.0,0.00019721,2]
[381876156,1756384254888,-1000.0,0.00019721,2]
[381876159,1756384254898,-504.97425521,0.00019721,2]
[381876161,1756384254907,-1001.2037536,0.00019721,2]
[381876162,1756384254917,-1000.0,0.00019721,2]
[381876164,1756384254926,-1000.0,0.00019721,2]
[381876167,1756384254935,-1000.0,0.00019721,2]
[381876169,1756384254945,-1000.0,0.00019721,2]
[381876171,1756384254955,-1000.0,0.00019721,2]
[381876172,1756384254964,-1000.0,0.00019721,2]
[381876174,1756384254973,-1000.0,0.00019721,2]
[381876176,1756384254982,-1000.0,0.00019721,2]
[381876179,1756384254994,-1000.0,0.00019721,2]
[381876181,1756384255004,-1000.0,0.00019721,2]
[381876183,1756384255013,-1000.0,0.00019721,2]
[381876185,1756384255022,-1000.0,0.00019721,2]
[381876187,1756384255032,-1000.0,0.00019721,2]
[381876189,1756384255041,-1000.0,0.00019721,2]
[381876191,1756384255051,-1000.0,0.00019721,2]
[381876193,1756384255060,-1000.0,0.00019721,2]
[381876195,1756384255069,-1003.32526424,0.00019721,2]
[381876197,1756384255079,-1000.0,0.00019721,2]
[381876199,1756384255088,-1000.0,0.00019721,2]
[381876201,1756384255098,-500.0,0.00019721,2]
[381876203,1756384255107,-1005.34538249,0.00019721,2]
[381876205,1756384255116,-1000.0,0.00019721,2]
[381876207,1756384255126,-1000.0,0.00019721,2]
[381876209,1756384255135,-715.83401308,0.00019721,2]
[381876211,1756384255144,-151.0,0.00019726,2]
[381876213,1756384255153,-153.56321748,0.00019726,2]
[381876215,1756384255163,-480.0,0.00019726,2]
[381876217,1756384255172,-480.0,0.00019726,2]